bitfinex/quotes_ETHUSD_20251120
["timestamp","ask_amount","ask_price","bid_price","bid_amount"]
[1763670279036,1.13342281,2847.2,2846.4,0.6798]
[1763670279214,1.13342281,2847.2,2846.5,0.4861]
[1763670280805,1.13342281,2847.2,2845.7,0.001]
[1763670280806,0.3503,2846.6,2845.7,0.001]
[1763670281139,0.405504,2846.4,2845.7,0.001]
[1763670281440,0.405504,2846.2,2845.7,0.001]
[1763670281643,0.638504,2845.8,2845.7,0.001]
[1763670282000,0.873004,2845.8,2845.7,0.001]
[1763670282202,0.638504,2845.8,2845.7,0.001]
[1763670282415,0.18865618,2846.3,2845.7,0.001]
[1763670282745,0.405504,2846.4,2845.7,0.001]
[1763670283237,1.14149264,2846.5,2845.7,0.001]
[1763670283238,0.640004,2846.5,2845.7,0.001]
[1763670283601,0.405504,2846.3,2845.7,0.001]
[1763670283817,0.1158,2846.6,2845.7,0.4871]
[1763670284031,0.1158,2846.6,2845.7,0.001]
[1763670284232,0.405504,2846.5,2845.7,0.001]
[1763670285859,0.405504,2846.3,2845.7,0.001]
[1763670286349,0.405504,2846.1,2845.7,0.001]
[1763670286725,0.2345,2846.1,2845.7,0.001]
[1763670287467,0.2345,2846.4,2845.7,0.001]
[1763670287640,0.405504,2846.3,2845.7,0.001]
[1763670288122,0.2345,2845.8,2845.7,0.001]
[1763670288328,1.54699664,2845.8,2845.7,0.001]
[1763670288530,1.54272095,2845.8,2845.7,0.001]
[1763670288751,0.640004,2845.8,2845.7,0.001]
[1763670288948,0.874504,2845.8,2845.7,0.001]
[1763670289283,0.874504,2845.8,2845.4,0.001]
[1763670289284,0.720204,2845.7,2845.4,0.001]
[1763670289429,0.638504,2845.5,2845.4,0.001]
[1763670289757,1.09119659,2845.5,2845.4,0.001]
[1763670289928,1.32569659,2845.5,2845.4,0.001]
[1763670290130,1.59896551,2845.5,2845.4,0.001]
[1763670290329,1.59896551,2845.5,2842.6,0.70090675]
[1763670290330,0.405504,2845.1,2843.6,0.6829]
[1763670290568,0.405504,2844.9,2843.6,0.1968]
[1763670290730,0.405504,2844.9,2843.7,0.4861]
[1763670290933,0.405504,2844.7,2843.7,0.4861]
[1763670291133,0.405504,2844.7,2842.1,0.68673846]
[1763670291134,0.405504,2844.1,2843.3,0.1968]
[1763670291343,0.405504,2843.9,2842.8,0.4861]
[1763670291899,1.14149264,2844.5,2842.8,0.4861]
[1763670291900,0.405504,2844.4,2842.8,0.4861]
[1763670292872,0.1188,2844.8,2842.9,0.03517534]
[1763670293072,0.1188,2844.8,2842.8,0.4861]
[1763670293073,0.405504,2844.7,2842.8,0.4861]
[1763670293284,0.405504,2844.7,2842.8,7.53021691]
[1763670293619,0.405504,2844.7,2842.9,0.77270169]
[1763670293772,0.405504,2844.7,2843.0,0.4861]
[1763670294288,7.04411691,2844.6,2841.5,0.4861]
[1763670294481,1.31249664,2842.6,2841.5,0.4861]
[1763670294802,7.04411691,2842.2,2841.1,0.1968]
[1763670295015,1.31249664,2842.1,2841.1,0.1968]
[1763670295212,0.405504,2842.0,2841.1,0.1968]
[1763670295428,1.51543469,2842.0,2841.1,0.1968]
[1763670295630,1.51543469,2842.0,2840.8,0.001]
[1763670295833,7.44962091,2841.8,2840.8,0.001]
[1763670296034,0.24224273,2841.9,2841.0,0.4861]
[1763670296234,0.405504,2841.9,2841.0,0.4861]
[1763670296438,0.405504,2841.9,2841.1,0.1968]
[1763670296739,1.10993069,2842.0,2841.1,0.1968]
[1763670296904,1.10993069,2842.0,2841.2,0.4861]
[1763670297316,0.405504,2841.9,2841.1,0.1968]
[1763670297635,0.405504,2841.7,2841.0,0.001]
[1763670297803,0.405504,2841.5,2841.0,0.001]
[1763670298010,0.405504,2841.5,2841.1,0.1968]
[1763670298230,0.405504,2841.5,2841.0,0.001]
[1763670300940,1.10993069,2842.0,2841.1,0.1968]
[1763670301150,0.405504,2841.9,2841.1,0.1968]
[1763670301443,1.10993069,2842.0,2841.2,0.4861]
[1763670304412,0.05,2844.1,2841.2,0.4861]
[1763670304413,0.1158,2843.5,2841.5,1.31249664]
[1763670304618,0.72569259,2844.2,2843.0,0.1968]
[1763670304912,0.05,2844.6,2843.0,0.1968]
[1763670304913,0.72569259,2844.1,2843.0,0.1968]
[1763670305328,0.90699264,2843.8,2842.7,0.1968]
[1763670305531,0.79511096,2843.7,2842.7,0.6829]
[1763670305754,0.1158,2843.6,2842.7,0.1968]
[1763670305925,0.1158,2843.6,2842.3,0.1968]
[1763670305926,0.405504,2843.1,2842.3,0.1968]
[1763670306261,0.90699264,2843.5,2842.3,0.1968]
[1763670306740,0.405504,2843.4,2842.3,0.1968]
[1763670307047,0.405504,2843.4,2842.0,0.1968]
[1763670307048,1.31249664,2843.1,2842.0,0.1968]
[1763670307256,0.405504,2842.9,2841.7,0.4861]
[1763670308248,0.83566135,2843.0,2841.7,0.4861]
[1763670308856,1.31249664,2842.9,2841.7,0.4861]
[1763670310070,1.31249664,2842.9,2841.1,0.1968]
[1763670310071,0.405504,2842.4,2841.3,0.4598]
[1763670311461,0.405504,2842.8,2841.3,0.4598]
[1763670312261,0.405504,2842.4,2841.3,0.4598]
[1763670313470,1.31249664,2842.1,2841.1,0.1968]
[1763670313786,1.31249664,2842.1,2841.2,0.4598]
[1763670313787,0.83566135,2842.0,2841.2,0.4598]
[1763670314659,0.405504,2842.4,2841.2,0.4598]
[1763670315357,0.90699264,2842.5,2841.2,0.4598]
[1763670315589,0.052,2843.5,2841.2,0.4598]
[1763670315590,7.04411691,2843.2,2841.2,0.4598]
[1763670316088,1.54699664,2843.1,2841.2,0.4598]
[1763670316477,0.405504,2842.9,2841.2,0.4598]
[1763670317090,0.405504,2842.7,2841.2,0.4598]
[1763670317561,0.2345,2842.8,2841.2,0.4598]
[1763670317562,0.90699264,2843.1,2841.2,0.4598]
[1763670317893,0.405504,2843.1,2841.2,0.4598]
[1763670318090,0.2345,2843.2,2841.2,0.4598]
[1763670318091,0.405504,2843.2,2841.2,0.4598]
[1763670318296,0.41486892,2843.1,2841.2,0.4598]
[1763670319097,0.18036892,2843.1,2841.2,0.4598]
[1763670319295,0.002,2843.5,2841.7,7.04411691]
[1763670319696,0.002,2843.5,2841.8,0.4598]
[1763670319904,0.2365,2843.5,2841.8,0.4598]
[1763670320062,0.405504,2843.4,2841.8,0.4598]
[1763670320267,0.2365,2843.5,2841.8,0.4598]
[1763670320485,0.002,2843.5,2841.8,0.4598]
[1763670321090,0.407504,2843.5,2841.8,0.4598]
[1763670322300,0.002,2843.5,2841.8,7.50391691]
[1763670322606,0.002,2843.5,2841.9,1.21019169]
[1763670323113,0.407504,2843.5,2842.0,0.4598]
[1763670323313,0.405504,2843.3,2842.1,0.1839]
[1763670323816,0.405504,2843.1,2842.1,0.1839]
[1763670324114,0.405504,2843.4,2842.1,0.6437]
[1763670324473,0.407504,2843.5,2842.2,0.4598]
[1763670324700,0.2345,2843.4,2842.2,0.4598]
[1763670324871,0.405504,2843.2,2842.2,0.4598]
[1763670325398,0.405504,2843.2,2842.1,0.1839]
[1763670325399,0.640004,2843.2,2842.1,0.1839]
[1763670326605,0.405504,2843.0,2842.1,0.1839]
[1763670327125,0.640004,2843.0,2842.1,0.1839]
[1763670327279,0.405504,2842.9,2842.1,0.1839]
[1763670327469,0.405504,2843.2,2842.2,0.4598]
[1763670329220,0.002,2843.5,2842.2,0.4598]
[1763670330590,0.002,2843.5,2843.4,0.6736]
[1763670330841,0.002,2843.5,2842.2,0.4598]
[1763670330992,0.002,2843.5,2842.3,0.4977]
[1763670332294,0.407504,2843.5,2842.3,0.4977]
[1763670332625,0.642004,2843.5,2842.3,0.4977]
[1763670332961,2.03818923,2843.4,2842.1,0.1839]
[1763670333227,0.90843061,2843.3,2842.1,0.1839]
[1763670333431,1.14293061,2843.3,2842.1,0.1839]
[1763670334134,0.405504,2843.1,2842.1,0.1839]
[1763670334425,0.49119259,2843.0,2841.1,0.1978]
[1763670334604,0.405504,2842.9,2841.8,0.001]
[1763670334792,1.43408535,2842.9,2841.8,0.001]
[1763670334992,0.2345,2842.8,2841.8,0.001]
[1763670335317,0.79408135,2842.9,2841.8,0.4987]
[1763670335619,0.1158,2843.2,2841.8,0.4987]
[1763670335620,0.405504,2842.8,2841.8,0.4987]
[1763670335814,0.405504,2843.1,2841.8,0.4987]
[1763670336012,0.2345,2843.0,2841.8,0.4987]
[1763670337738,0.29980183,2843.2,2841.8,0.4987]
[1763670337936,0.405504,2843.1,2841.8,0.4987]
[1763670339245,0.640004,2843.1,2841.8,0.4987]
[1763670339656,0.405504,2843.1,2841.8,0.4987]
[1763670339851,0.640004,2843.1,2841.8,0.4987]
[1763670340152,0.405504,2843.1,2841.8,0.4987]
[1763670340480,0.002,2843.5,2843.0,0.6497]
[1763670340652,0.002,2843.5,2843.1,0.4513]
[1763670341154,0.002,2843.5,2842.9,0.167]
[1763670342357,0.002,2843.5,2842.9,0.6344]
[1763670342866,0.002,2843.5,2843.0,0.4674]
[1763670344858,0.002,2843.5,2843.1,0.4674]
[1763670346466,0.002,2843.5,2842.9,0.167]
[1763670346773,0.002,2843.5,2842.7,0.1984]
[1763670347477,0.002,2843.5,2842.7,0.6658]
[1763670347851,0.002,2843.5,2842.8,0.4674]
[1763670348186,0.002,2843.5,2843.4,0.4513]
[1763670348362,0.002,2843.5,2842.8,0.4674]
[1763670349445,0.002,2843.5,2842.7,0.1984]
[1763670350782,0.2679,2843.5,2842.7,0.1984]
[1763670350947,0.1472,2842.8,2842.2,0.4674]
[1763670351780,0.1472,2842.8,2841.7,0.1984]
[1763670351984,0.405504,2843.1,2842.2,0.4674]
[1763670353579,0.002,2843.0,2841.7,0.1984]
[1763670353782,0.002,2843.0,2842.1,0.4674]
[1763670354384,0.002,2843.0,2841.7,0.1984]
[1763670354588,0.405504,2842.8,2841.7,0.1984]
[1763670354751,0.405504,2842.8,2841.8,0.4684]
[1763670354951,0.002,2843.0,2841.8,0.4684]
[1763670357183,0.002,2843.0,2842.9,0.4513]
[1763670357690,0.002,2843.0,2842.9,0.9187]
[1763670357903,0.002,2843.0,2842.9,0.4513]
[1763670358482,0.002,2843.0,2842.9,0.9187]
[1763670360520,0.002,2843.0,2842.4,0.4674]
[1763670360696,0.002,2843.0,2842.9,0.4513]
[1763670361412,0.002,2843.0,2841.8,0.406504]
[1763670361413,0.002,2843.0,2842.5,0.4674]
[1763670361592,0.002,2843.0,2841.9,0.4674]
[1763670361898,0.405504,2842.8,2841.9,0.4674]
[1763670363198,0.405504,2842.8,2841.8,0.001]
[1763670363199,0.2659,2842.0,2841.8,0.001]
[1763670363401,0.71613958,2842.7,2841.8,0.001]
[1763670363402,0.018,2841.9,2841.8,0.001]
[1763670363983,0.405504,2842.3,2841.8,0.001]
[1763670364166,0.2659,2842.5,2841.8,0.001]
[1763670364500,0.405504,2842.4,2841.8,0.001]
[1763670364995,0.2659,2842.4,2841.8,0.001]
[1763670365187,0.405504,2842.6,2841.8,0.001]
[1763670365188,0.2659,2842.3,2841.8,0.001]
[1763670365390,0.2659,2841.9,2841.8,0.001]
[1763670366468,0.405504,2842.1,2841.8,0.001]
[1763670368618,0.90699264,2842.9,2841.9,3.82]
[1763670368832,0.2659,2842.8,2842.0,3.82]
[1763670369115,0.405504,2842.7,2842.0,3.82]
[1763670369481,0.2659,2842.1,2841.9,3.82]
[1763670369681,0.2659,2842.1,2842.0,3.82]
[1763670369903,0.405504,2842.5,2842.0,3.82]
[1763670370079,0.2659,2842.5,2842.0,3.82]
[1763670370290,0.2659,2842.4,2842.0,3.82]
[1763670370516,0.405504,2842.8,2842.0,3.82]
[1763670370823,0.002,2843.0,2842.1,4.0005]
[1763670371005,0.002,2843.0,2842.2,3.82]
[1763670371414,0.002,2843.0,2842.3,0.4865]
[1763670371724,0.002,2842.9,2842.3,0.4865]
[1763670372405,0.002,2842.9,2842.2,3.82]
[1763670372605,0.002,2842.9,2842.2,4.3065]
[1763670373890,0.002,2842.9,2842.8,0.4781]
[1763670374403,0.002,2843.2,2842.9,0.4781]
[1763670374580,0.002,2843.2,2843.1,0.6586]
[1763670375198,0.002,2843.2,2843.1,1.1451]
[1763670375527,0.55415293,2843.2,2843.1,1.1451]
[1763670376285,0.55415293,2843.2,2843.1,0.6586]
[1763670376589,0.55415293,2843.2,2842.5,0.4865]
[1763670376809,0.55415293,2843.2,2843.1,0.6586]
[1763670377123,0.55415293,2843.2,2843.1,1.1451]
[1763670378436,0.55415293,2843.2,2842.8,0.1805]
[1763670378838,0.55415293,2843.2,2842.8,0.667]
[1763670378998,0.55415293,2843.2,2843.1,0.4781]
[1763670379407,0.55415293,2843.2,2843.1,0.9646]
[1763670381443,0.55415293,2843.2,2842.8,0.1805]
[1763670381598,0.55415293,2843.2,2843.1,0.9646]
[1763670382732,0.55415293,2843.2,2842.8,0.1805]
[1763670383751,0.55415293,2843.2,2842.4,0.4865]
[1763670384430,0.55415293,2843.2,2843.1,0.1805]
[1763670384634,0.55415293,2843.2,2843.1,4.4786]
[1763670384831,0.55415293,2843.2,2843.1,1.59296]
[1763670385044,0.2699,2844.7,2843.2,0.4781]
[1763670385356,0.4746,2845.0,2843.4,0.4781]
[1763670385865,0.4746,2845.0,2843.4,0.9646]
[1763670386321,0.4746,2844.6,2843.4,0.9646]
[1763670386525,0.4746,2844.4,2843.4,0.9646]
[1763670387346,0.002,2845.1,2843.4,1.370104]
[1763670387546,0.002,2845.1,2844.3,0.4781]
[1763670387856,0.002,2845.1,2844.4,0.4865]
[1763670388175,0.55186581,2844.7,2844.4,0.4865]
[1763670388671,0.002,2845.1,2844.6,0.4781]
[1763670388969,0.002,2845.1,2844.2,0.1805]
[1763670388970,0.55185644,2844.7,2844.2,0.1805]
[1763670389254,0.55190972,2845.0,2844.2,0.667]
[1763670389481,0.55190972,2845.0,2844.3,0.4865]
[1763670389852,0.2649,2844.4,2843.5,0.1805]
[1763670390050,0.1004,2844.9,2842.1,0.1805]
[1763670390051,0.002,2843.5,2842.1,0.1805]
[1763670390250,0.002,2843.5,2842.7,0.001]
[1763670390578,0.267,2843.1,2842.7,0.001]
[1763670390772,0.4704,2843.4,2842.7,0.001]
[1763670390938,0.002,2843.5,2842.7,0.001]
[1763670391145,0.002,2843.5,2843.1,0.1838]
[1763670392378,0.002,2843.5,2843.0,0.001]
[1763670392550,0.002,2843.5,2843.1,0.6822]
[1763670392953,0.002,2843.5,2843.2,0.4984]
[1763670393158,0.002,2843.5,2843.4,0.46]
[1763670393545,0.002,2843.5,2843.4,0.9584]
[1763670393748,0.002,2843.5,2843.4,0.46]
[1763670393974,0.002,2843.5,2843.1,0.1838]
[1763670394176,0.002,2843.5,2843.1,0.6822]
[1763670394583,0.002,2843.5,2843.1,0.1838]
[1763670394883,0.002,2843.5,2843.2,0.4984]
[1763670395293,0.002,2843.5,2843.1,0.1838]
[1763670395474,0.002,2843.5,2843.1,0.6822]
[1763670396079,0.002,2843.5,2843.1,0.1838]
[1763670396471,0.002,2843.5,2843.2,0.4984]
[1763670396665,0.002,2843.5,2843.1,0.1838]
[1763670396906,0.002,2843.5,2843.2,0.4984]
[1763670397062,0.002,2843.5,2843.1,0.1838]
[1763670397264,0.002,2843.5,2843.1,0.6822]
[1763670397781,0.002,2843.5,2843.0,0.001]
[1763670398881,0.002,2843.5,2843.1,0.1971]
[1763670399107,0.002,2843.5,2843.0,0.001]
[1763670399761,0.4971,2843.5,2843.0,0.001]
[1763670400633,0.002,2843.5,2843.1,0.1971]
[1763670400787,0.002,2843.5,2843.1,0.6558]
[1763670401377,0.002,2843.5,2843.4,0.4852]
[1763670401592,0.002,2843.5,2843.4,1.86096316]
[1763670401772,0.002,2843.5,2843.4,2.73278664]
[1763670401974,0.5539844,2843.5,2843.4,2.73278664]
[1763670402186,0.002,2843.8,2843.5,0.405504]
[1763670402387,0.002,2844.1,2843.8,7.93232777]
[1763670402581,0.002,2845.4,2844.0,0.890704]
[1763670402792,0.002,2845.4,2844.0,0.4852]
[1763670402793,0.4951,2845.2,2844.0,0.4852]
[1763670402992,0.4951,2845.2,2844.1,0.0477]
[1763670403198,0.4971,2845.1,2844.1,0.0477]
[1763670403501,0.4971,2845.1,2843.8,0.0477]
[1763670403901,0.4971,2845.1,2843.9,0.4587]
[1763670404826,0.002,2845.1,2843.9,0.4587]
[1763670405330,0.4951,2845.0,2843.8,0.0477]
[1763670405532,0.1996,2844.9,2843.8,0.5064]
[1763670406029,0.1996,2844.9,2843.8,0.0477]
[1763670406030,0.4951,2844.8,2843.8,0.0477]
[1763670406537,0.55195271,2844.6,2843.5,0.5064]
[1763670406712,0.55195271,2844.6,2843.8,0.4587]
[1763670408144,0.4951,2844.8,2843.8,0.4587]
[1763670408501,0.002,2845.1,2843.8,0.49386421]
[1763670408709,0.4951,2845.0,2843.6,0.405504]
[1763670408905,0.94533958,2845.0,2843.1,0.1971]
[1763670409255,0.94533958,2845.0,2843.2,0.4587]
[1763670409256,0.605104,2844.9,2843.2,0.4587]
[1763670409409,1.100204,2844.9,2843.2,0.4587]
[1763670409811,0.4951,2844.8,2843.2,0.4587]
[1763670411343,0.405504,2844.7,2843.1,0.1971]
[1763670411506,0.4951,2844.6,2843.1,0.1971]
[1763670411709,0.405504,2844.5,2843.1,0.1971]
[1763670412133,0.4951,2844.4,2843.1,0.1971]
[1763670415342,0.405504,2844.3,2842.8,0.001]
[1763670415539,0.6903,2843.1,2842.8,0.001]
[1763670415954,1.1854,2843.1,2842.8,0.001]
[1763670418630,1.73771889,2843.1,2842.8,0.001]
[1763670419041,0.55231889,2843.1,2842.8,0.001]
[1763670419243,1.53811889,2843.1,2842.8,0.001]
[1763670419474,0.405504,2843.0,2842.8,0.001]
[1763670419778,0.93151595,2842.9,2842.8,0.001]
[1763670420282,0.405504,2842.8,2842.7,0.001]
[1763670420454,2.24249664,2842.8,2842.7,0.001]
[1763670421060,0.405504,2842.5,2841.5,0.001]
[1763670421265,0.6322,2841.9,2841.5,0.001]
[1763670421602,0.405504,2842.5,2841.5,0.001]
[1763670421603,0.6947,2842.4,2841.5,0.001]
[1763670422898,0.4907,2841.9,2841.5,0.001]
[1763670423245,0.9858,2841.9,2841.5,0.001]
[1763670423672,1.53831995,2841.9,2841.5,0.001]
[1763670424183,0.55251995,2841.9,2841.8,0.4862]
[1763670424487,0.55251995,2841.9,2841.8,4.3062]
[1763670427035,7.54107379,2844.3,2842.4,0.97759664]
[1763670427162,1.35723222,2844.2,2842.4,0.1823]
[1763670427366,2.04352196,2844.1,2842.4,0.1823]
[1763670427562,0.405504,2843.9,2842.4,0.1823]
[1763670427987,0.405504,2843.7,2842.4,0.1823]
[1763670428355,0.4926,2843.6,2842.4,0.1823]
[1763670428557,0.1996,2843.8,2842.4,0.6342]
[1763670428970,0.1996,2843.8,2842.5,0.4519]
[1763670429300,0.4926,2843.7,2842.5,0.4519]
[1763670430089,0.1996,2843.8,2842.5,0.4519]
[1763670430652,0.4926,2844.1,2842.5,0.4519]
[1763670430878,0.4926,2844.1,2842.6,0.76801738]
[1763670431277,0.002,2844.5,2843.2,7.04597379]
[1763670431477,0.002,2844.5,2843.3,0.405504]
[1763670431692,0.002,2844.5,2843.3,1.048104]
[1763670432111,0.002,2844.5,2843.4,0.4519]
[1763670432414,0.002,2844.5,2844.4,0.5414]
[1763670432875,0.002,2844.5,2844.0,0.4519]
[1763670432876,0.002,2844.5,2844.1,0.0542]
[1763670433080,0.4946,2844.5,2843.9,0.0542]
[1763670433515,0.4946,2844.5,2843.3,0.1907]
[1763670433721,0.4572,2844.0,2843.0,0.4519]
[1763670434224,0.1056,2843.9,2843.0,0.4519]
[1763670434542,0.1817,2844.4,2843.0,0.4519]
[1763670434716,0.1817,2844.4,2843.1,0.74978738]
[1763670435183,0.6743,2844.4,2843.2,0.4519]
[1763670435379,0.6743,2844.4,2842.8,0.5061]
[1763670435593,0.6743,2844.4,2842.8,0.0542]
[1763670435594,0.405504,2844.2,2842.8,0.0542]
[1763670435842,0.4926,2844.3,2842.8,0.5061]
[1763670436025,0.4926,2844.3,2842.9,0.75520738]
[1763670436203,0.4926,2844.3,2843.0,0.4519]
[1763670436997,0.4926,2844.3,2842.8,0.0542]
[1763670437410,0.4926,2844.3,2842.9,0.4519]
[1763670437607,0.4926,2844.3,2843.0,0.405504]
[1763670438034,0.4926,2844.3,2843.1,0.4519]
[1763670438245,0.002,2844.5,2843.2,0.405504]
[1763670438536,0.002,2844.5,2843.6,7.04597379]
[1763670438835,0.002,2844.5,2843.3,1.24223778]
[1763670439035,0.002,2844.5,2843.4,0.4519]
[1763670439201,0.48957507,2844.8,2843.4,0.4519]
[1763670439900,0.405504,2844.7,2843.3,0.79033778]
[1763670440235,0.405504,2844.7,2843.2,0.1907]
[1763670440431,0.48957507,2844.8,2843.2,0.1907]
[1763670440432,0.405504,2844.8,2843.2,0.1907]
[1763670441231,0.405504,2844.6,2843.2,0.1907]
[1763670441643,0.1817,2844.9,2843.3,0.4519]
[1763670441943,0.4926,2844.6,2843.3,0.4519]
[1763670442742,0.4926,2844.6,2843.3,4.2719]
[1763670443035,0.4926,2844.6,2843.4,0.44626]
[1763670443532,0.4946,2844.6,2843.4,0.44626]
[1763670443736,0.4946,2844.6,2843.3,4.2719]
[1763670444039,0.4946,2844.6,2843.2,0.1907]
[1763670444712,0.405504,2844.5,2843.2,0.1907]
[1763670445114,0.4926,2844.4,2843.2,0.1907]
[1763670445709,0.4926,2844.4,2843.2,0.6426]
[1763670446729,0.002,2844.6,2843.2,0.6426]
[1763670446730,0.002,2844.6,2843.4,7.04597379]
[1763670446916,0.002,2844.6,2843.8,7.04597379]
[1763670447315,0.002,2844.6,2843.9,0.4519]
[1763670447915,0.002,2844.6,2843.5,4.57330442]
[1763670447916,0.002,2844.6,2843.6,0.4519]
[1763670448754,0.55199724,2844.4,2843.5,0.75330442]
[1763670448913,0.55199724,2844.4,2843.2,0.6426]
[1763670449118,0.55199724,2844.4,2843.3,0.4519]
[1763670450350,1.04459724,2844.4,2843.3,0.4519]
[1763670450756,0.405504,2844.2,2842.9,0.4764]
[1763670451056,0.4847,2844.1,2842.8,0.0542]
[1763670451654,0.4847,2844.1,2842.2,0.4764]
[1763670451655,0.405504,2844.0,2842.2,0.4764]
[1763670451821,0.405504,2844.0,2842.5,0.4764]
[1763670452161,0.6847,2843.9,2842.6,7.04597379]
[1763670452528,0.2,2843.9,2842.7,0.4764]
[1763670453258,0.6847,2843.9,2842.7,0.4764]
[1763670454038,0.4847,2843.8,2842.7,0.4764]
[1763670455331,0.2,2843.9,2842.7,0.4764]
[1763670456038,0.407504,2844.6,2842.8,0.75223738]
[1763670456245,0.4847,2844.4,2842.8,0.75223738]
[1763670456536,0.4847,2844.4,2842.9,0.4764]
[1763670457088,0.55209951,2844.1,2842.9,0.4764]
[1763670457560,0.4847,2844.0,2842.9,0.4764]
[1763670457945,0.2,2843.9,2842.9,0.4764]
[1763670459034,0.6633,2843.9,2842.9,0.4764]
[1763670459639,0.55209951,2844.1,2843.8,0.6756]
[1763670459969,0.55209951,2844.1,2844.0,0.4817]
[1763670461895,0.55209951,2844.1,2844.0,0.9648]
[1763670462108,0.55209951,2844.1,2844.0,0.4817]
[1763670462389,0.55209951,2844.1,2844.0,0.9648]
[1763670463154,0.55209951,2844.1,2844.0,0.4817]
[1763670463589,0.55209951,2844.1,2844.0,0.9648]
[1763670465682,0.55209951,2844.1,2844.0,1.370304]
[1763670467376,0.55209951,2844.1,2844.0,9.32327043]
[1763670467595,0.55209951,2844.1,2844.0,10.27498747]
[1763670468096,0.002,2844.6,2844.3,3.26790049]
[1763670468294,0.002,2844.6,2844.5,0.4817]
[1763670468494,0.002,2844.6,2844.5,3.74960049]
[1763670468696,0.55386773,2844.6,2844.5,3.74960049]
[1763670468896,0.55386773,2844.6,2844.5,4.80787054]
[1763670469868,0.55386773,2844.6,2844.5,5.29097054]
[1763670470072,0.55386773,2844.6,2844.5,5.69647454]
[1763670470281,0.002,2844.6,2844.5,6.60346718]
[1763670470599,0.002,2844.8,2844.6,1.31249664]
[1763670470776,0.4633,2846.4,2844.6,1.31249664]
[1763670470777,0.4633,2846.8,2844.8,0.887204]
[1763670470966,0.55170633,2845.9,2845.3,0.405504]
[1763670471170,0.55170633,2845.9,2845.3,0.887204]
[1763670471389,0.55170633,2845.9,2845.3,1.370304]
[1763670471782,0.55170633,2845.9,2845.3,0.9648]
[1763670471983,0.55170633,2845.9,2845.3,1.86913664]
[1763670473021,0.55170633,2845.9,2845.3,2.27464064]
[1763670474785,0.1994,2847.4,2845.9,0.405504]
[1763670474983,0.1994,2847.7,2846.8,0.4817]
[1763670475291,0.1994,2847.7,2845.5,6.98290049]
[1763670475292,0.1994,2847.7,2845.5,1.39009264]
[1763670475491,0.6627,2847.7,2846.3,1.31249664]
[1763670475691,0.1994,2847.7,2846.4,0.637]
[1763670475988,0.4633,2847.6,2846.4,0.637]
[1763670476924,0.4633,2847.6,2846.5,0.4831]
[1763670477584,0.1994,2847.9,2846.6,0.405504]
[1763670477987,0.1994,2847.9,2846.7,0.4831]
[1763670478185,0.55129742,2847.7,2846.7,0.4831]
[1763670479946,0.002,2847.6,2846.7,0.4831]
[1763670480951,0.002,2847.6,2846.8,1.31249664]
[1763670481131,0.002,2847.6,2847.5,0.1739]
[1763670481335,0.002,2847.6,2847.5,1.1387]
[1763670481645,0.002,2847.6,2847.5,1.544204]
[1763670482210,0.002,2847.9,2847.6,0.405504]
[1763670482415,0.002,2847.9,2847.8,9.29283485]
[1763670482712,0.002,2847.9,2847.8,10.27042834]
[1763670482934,0.002,2847.9,2847.8,10.75352834]
[1763670483663,0.002,2848.2,2847.9,1.31249664]
[1763670483961,0.6627,2850.0,2848.2,0.405504]
[1763670484172,0.6627,2850.0,2848.6,1.31249664]
[1763670484313,0.6627,2850.0,2848.8,0.405504]
[1763670484510,0.6627,2850.0,2848.3,0.4831]
[1763670484511,0.4633,2849.9,2848.0,7.49863821]
[1763670484710,0.4633,2849.9,2846.8,4.50865351]
[1763670484711,0.4633,2849.9,2846.9,8.42806169]
[1763670484956,0.4633,2849.9,2846.5,7.49863821]
[1763670484957,0.1917,2847.9,2846.5,7.49863821]
[1763670485115,0.4973,2847.6,2846.5,0.4831]
[1763670485316,0.1917,2847.9,2846.6,7.98173821]
[1763670485516,0.1917,2847.9,2846.7,1.39009264]
[1763670485847,0.4633,2847.8,2846.7,1.39009264]
[1763670486051,0.4633,2847.8,2846.7,0.4831]
[1763670486249,0.4633,2847.8,2846.8,0.405504]
[1763670486441,0.4633,2847.8,2846.7,0.4831]
[1763670487153,0.55126279,2848.2,2846.8,0.405504]
[1763670487378,0.55126279,2848.2,2846.9,0.17955966]
[1763670487573,0.55126279,2848.2,2847.0,0.405504]
[1763670487872,1.01456279,2848.2,2847.0,0.405504]
[1763670488077,1.01456279,2848.2,2847.1,0.1739]
[1763670488440,0.55126279,2848.2,2847.1,0.1739]
[1763670488676,0.4839,2848.1,2847.1,0.1739]
[1763670488975,0.4839,2848.1,2846.5,0.4794]
[1763670489174,0.4839,2848.1,2846.6,0.405504]
[1763670489542,0.4839,2848.1,2846.5,0.4794]
[1763670489543,0.4839,2848.1,2846.5,0.884904]
[1763670489940,0.4839,2848.1,2846.5,0.4794]
[1763670490136,0.4839,2848.1,2846.1,7.49863821]
[1763670490361,0.4839,2848.1,2846.7,0.405504]
[1763670490561,0.4839,2848.1,2846.7,0.884904]
[1763670490989,0.4839,2848.1,2846.9,0.405504]
[1763670491165,0.4839,2848.1,2847.1,7.49863821]
[1763670491367,0.4839,2848.1,2846.9,0.405504]
[1763670491368,0.4839,2848.1,2846.9,0.884904]
[1763670491753,0.4839,2848.1,2847.1,0.405504]
[1763670491956,0.55126279,2848.2,2847.1,0.405504]